[Event "XIII Marques de Pombal 2022"]
[Site "Pombal"]
[Date "2022.10.09"]
[Round "7.6"]
[White "Moldovan, Lucas Gabriel"]
[Black "Morais, Vitor Mestre"]
[Result "1/2-1/2"]
[ECO "B25"]
[WhiteElo "1712"]
[BlackElo "1802"]
[Annotator "NA RC COMBH"]
[PlyCount "80"]
[EventDate "2022.09.28"]
[EventType "swiss"]
[EventCountry "POR"]
[SourceTitle "playchess.com"]
[Source "ChessBase"]
[SourceQuality "1"]
[TimeControl "5400+30"]

1. e4 {[%emt 0:00:04]} c5 {[%emt 0:00:07]} 2. Nc3 {[%emt 0:00:10]} Nc6 {[%emt 0:00:09]} 3. g3 {[%emt 0:01:52]} g6 {[%emt 0:00:07]} 4. Bg2 {[%emt 0:00:23]} Bg7 {[%emt 0:00:07]} 5. d3 {[%emt 0:01:07]} d6 {[%emt 0:00:08]} 6. Nge2 {[%emt 0:03:23]} e6 {[%emt 0:00:20]} 7. O-O {[%emt 0:01:33]} Nge7 {[%emt 0:00:06]} 8. Be3 {[%emt 0:02:37]} Nd4 {[%emt 0:00:11] The main line 8...Nd4 scores better than 8...0-0.} 9. Rb1 {[%emt 0:02:22]} Nec6 {[%emt 0:00:07]} 10. a3 {[%emt 0:07:36]} a5 {[%emt 0:01:17]} 11. Qd2 {[%emt 0:06:01]} O-O {[%emt 0:00:36]} 12. f4 {[%emt 0:08:44]} Rb8 {[%emt 0:00:21]} 13. g4 {[%emt 0:04:50]} f5 {[%emt 0:00:09]} 14. exf5 {[%emt 0:02:42]} exf5 {[%emt 0:00:23]} 15. g5 {[%emt 0:02:38] [#]} Re8 $146 {[%emt 0:00:44]} ({Predecessor:} 15... Be6 16. h4 d5 17. Ng3 b6 18. Kh2 Qd7 19. a4 Rfe8 20. b3 Bf7 21. Bf2 Nb4 22. Bxd4 Bxd4 {0-1 (37) Berka,L (1766)-Chmelik,J (1999) Marianske Lazne 2018}) 16. Bxd4 {[%emt 0:04:12]} Nxd4 {[%emt 0:00:22]} 17. Nxd4 {[%emt 0:09:41]} Bxd4+ {[%emt 0:00:58]} 18. Kh1 {[%emt 0:00:21]} Bd7 {[%emt 0:00:17]} 19. Rbe1 {[%emt 0:01:54]} Bc6 {[%emt 0:00:13]} 20. Nd5 {[%emt 0:01:07]} a4 {[%emt 0:16:07]} 21. Rxe8+ {[%emt 0:07:17]} Bxe8 {[%emt 0:00:58]} 22. Re1 {[%emt 0:02:01]} Bf7 {[%emt 0:00:28]} 23. c3 {[%emt 0:06:41]} Bg7 {[%emt 0:00:07]} 24. Qc2 {[%emt 0:03:38]} ({But not} 24. Re7 Kf8 25. Re3 Qd7 $11) 24... Qd7 {[%emt 0:03:32]} 25. Re7 {[%emt 0:02:13]} Qb5 {[%emt 0:01:09]} 26. Qe2 {[%emt 0:00:58]} Re8 {[%emt 0:02:29]} 27. Rxe8+ {[%emt 0:02:43]} Qxe8 {[%emt 0:00:13]} 28. Qxe8+ {[%emt 0:00:26]} Bxe8 {[%emt 0:00:11]} 29. Nb6 {[%emt 0:00:28]} Bb5 {[%emt 0:00:43]} 30. Bxb7 {[%emt 0:01:14]} Kf8 {[%emt 0:03:30]} 31. Nc4 {[%emt 0:01:51]} Ke7 {[%emt 0:00:30]} 32. Bd5 {[%emt 0:00:15]} h6 {[%emt 0:00:23]} 33. h4 {[%emt 0:00:36]} hxg5 {[%emt 0:00:03]} 34. hxg5 {[%emt 0:00:12]} Ba6 {[%emt 0:02:08]} 35. Bc6 {[%emt 0:01:39]} Kd8 {[%emt 0:02:38]} 36. Bxa4 {[%emt 0:01:02]} d5 {[%emt 0:00:10]} 37. Ne5 {[%emt 0:01:40]} Bxe5 {[%emt 0:00:32]} 38. fxe5 {[%emt 0:00:04]} Bxd3 $18 {[%emt 0:00:31]} 39. e6 {[%emt 0:01:05]} Ke7 {[%emt 0:00:07]} 40. Bd7 {[%emt 0:00:09]} d4 {[%emt 0:00:08]} 1/2-1/2

[Event "XIII Marques de Pombal 2022"]
[Site "Pombal"]
[Date "2022.10.09"]
[Round "7.7"]
[White "Areal, Maria Beatriz Moura "]
[Black "Goncalves, Samuel Jesus Pereira"]
[Result "0-1"]
[ECO "B02"]
[WhiteElo "1536"]
[BlackElo "2072"]
[Annotator "TA"]
[PlyCount "90"]
[EventDate "2022.09.28"]
[EventType "swiss"]
[EventCountry "POR"]
[SourceTitle "playchess.com"]
[Source "ChessBase"]
[SourceQuality "1"]
[TimeControl "5400+30"]

{[%evp 9,90,41,50,29,58,68,62,44,86,41,86,-11,85,82,90,77,102,72,90,56,52,66,52,50,60,40,41,-8,-29,-42,-51,-160,-157,-147,-81,-93,-85,-216,-51,-57,-60,-43,-55,-41,-39,-43,-22,-95,14,0,-8,-191,85,80,104,98,196,140,147,14,67,-128,-128,-128,-128,-101,-87,-126,-130,-120,-115,-1074,-1061,-12845,-1378,-29987,-6825,-4798,-6079,-5114,-5167,-1688,-1145]} 1. e4 {[%emt 0:00:06][%cal Be2e4,Be4e5][%mdl 32]} Nf6 {[%emt 0:00:16]} 2. e5 {[%emt 0:02:10]} Nd5 {[%emt 0:00:09]} 3. Bc4 {[%emt 0:02:24]} Nb6 {[%emt 0:00:12]} 4. Bb3 {[%emt 0:00:08]} e6 {[%emt 0:03:01]} 5. d4 {[%emt 0:02:17]} d6 {[%emt 0:01:08]} 6. exd6 {[%emt 0:03:22] B02: Alekhine's Defence: Chase Variation and lines with early Nc3.} Bxd6 {[%emt 0:02:20]} 7. Nf3 {[%emt 0:02:05]} O-O {[%emt 0:00:31]} 8. O-O {[%emt 0:01:15] [#] White is slightly better.} a5 $146 {[%emt 0:04:31] Hoping for ...a4.} ({Predecessor:} 8... c5 9. dxc5 Bxc5 10. Nc3 Nc6 11. Ne4 Be7 12. Be3 Nd5 13. Bxd5 exd5 14. Nc3 Be6 {1-0 (57) Sautter,J (1584)-Homann,C (1523) Playchess.com INT 2020}) 9. c3 {[%emt 0:02:22]} Na6 {[%emt 0:14:24]} 10. Qd3 {[%emt 0:11:13] [#]} (10. Bc2 $16) 10... h6 {[%emt 0:02:43]} (10... Nc5 $1 $11 11. Qe2 Nxb3 12. axb3 Nd5) 11. Bc2 $16 {[%emt 0:06:50][%csl Gc2][%cal Rd3h7]} f5 {[%emt 0:00:10]} 12. Re1 {[%emt 0:11:53]} Qf6 {[%emt 0:08:29]} 13. Nbd2 {[%emt 0:04:51]} Rd8 {[%emt 0:03:57]} 14. Nc4 {[%emt 0:02:46]} Nxc4 {[%emt 0:01:48]} 15. Qxc4 {[%emt 0:00:06]} b6 {[%emt 0:08:27]} 16. Ba4 {[%emt 0:08:27]} c5 {[%emt 0:09:11]} 17. Bb5 {[%emt 0:10:04]} (17. Bc6 $5 {[%cal Rc6a8]} Rb8 18. Be3 $14) 17... Nc7 {[%emt 0:03:18]} 18. dxc5 {[%emt 0:07:10]} (18. Bc6 $14) 18... bxc5 $11 {[%emt 0:03:27]} 19. Ba4 {[%emt 0:05:52]} Ba6 {[%emt 0:00:49]} 20. Qb3 (20. Qh4 $1 $15) 20... Rab8 $17 {[%emt 0:00:36]} 21. Qc2 {[%emt 0:01:10]} Bd3 {[%emt 0:02:53]} 22. Qd2 {[%emt 0:00:51] [#]} g5 $1 {[%emt 0:16:22][%cal Bg7g5,Bg5g4][%mdl 32] ...g4! is the strong threat.} 23. Kh1 {[%emt 0:04:58]} (23. Qe3 $17) (23. g3 Ba6) 23... Be4 $2 {[%emt 0:02:25]} ({Black should try} 23... Bf4 $19 24. Qd1 Be4) 24. Qe2 $15 {[%emt 0:00:18]} g4 {[%emt 0:01:11]} 25. Nd2 {[%emt 0:00:53]} Qh4 {[%emt 0:00:25][%csl Gd6][%cal Rh4h2]} 26. Nf1 {[%emt 0:00:02]} c4 {[%emt 0:06:08] Strongly threatening ...Bd3.} (26... Qh3 $2 27. Qxe4 $3 {[%mdl 512]} Qh5 28. Qc6 $18) 27. Bc2 {[%emt 0:01:28] Inhibits Bd3.} Bd5 $40 {[%emt 0:01:05][%mdl 128] Black mounts an attack.} 28. Kg1 {[%emt 0:00:50] [#]} (28. Rd1 $1 $11 {keeps the balance.}) 28... Rf8 {[%emt 0:00:41] Black is much more active.} (28... Rd7 $1 $17) 29. Qd2 {[%emt 0:01:47]} Rf6 {[%emt 0:01:28]} 30. Qd4 $2 {[%emt 0:02:56]} (30. b3 $1 $11 {and White has nothing to worry.} Rd8 31. bxc4) 30... Rbf8 $2 {[%emt 0:01:10]} (30... Nb5 $19 31. Qd2 Rd8) 31. Bf4 $16 {[%emt 0:00:12]} Nb5 {[%emt 0:00:27]} 32. Qd2 {[%emt 0:00:21] Threatens to win with Ba4.} Qh5 {[%emt 0:01:10]} (32... Bxf4 $16 {keeps fighting.} 33. Qxf4 Qg5 34. Qxg5+ hxg5) 33. Bxd6 {[%emt 0:00:29]} ({White should play} 33. a4 $18 Bxf4 34. Qxf4) 33... Nxd6 {[%emt 0:00:01]} 34. Ng3 {[%emt 0:00:35]} (34. Ne3 $16) 34... Qf7 {[%emt 0:00:34]} (34... Qg5 $11 35. Qd4 Rb8) 35. Re2 $2 {[%emt 0:01:15] [#]} (35. Rad1 $14) 35... f4 $1 $17 {[%emt 0:00:22][%cal Bf5f4,Bf4f3][%mdl 32]} 36. Ne4 {[%emt 0:00:11]} Nxe4 {[%emt 0:00:02]} 37. Bxe4 {[%emt 0:00:07]} f3 {[%emt 0:00:13]} 38. Ree1 {[%emt 0:02:21]} ({Wrong is} 38. gxf3 $2 gxf3 39. Kh1 fxe2 $19) 38... fxg2 {[%emt 0:01:29]} 39. Bxd5 {[%emt 0:01:13]} Rxf2 {[%emt 0:00:56] Chess con chili.} ({Much worse is} 39... exd5 $6 40. Re2 $11) 40. Qe3 $2 {[%emt 0:01:41][%mdl 8192]} (40. Rxe6 $17 Rxd2 41. Rg6+ Kh7 42. Bxf7) 40... exd5 $19 {[%emt 0:00:35]} 41. Qg3 {[%emt 0:00:36]} h5 {[%emt 0:00:30]} (41... Qa7 $142 42. Re3 Rf1+ 43. Kxg2 Rxa1) 42. h3 {[%emt 0:00:05]} Qf3 {[%emt 0:00:41]} (42... Qa7 $142 43. Re3 d4 44. cxd4 Rf1+ 45. Kh2 Rxa1 46. Re1 Rf1 47. Re8+ Kf7 48. Rf8+ Kxf8 49. Qd6+ Qe7 50. Qxe7+ Kxe7 51. Kxg2 Rg1+ 52. Kf2 gxh3 53. Ke3 Rae1+ 54. Kf2 h2 55. d5 h1=Q 56. d6+ Kxd6 57. b3 Qg2#) 43. Qxf3 {[%emt 0:00:39] Black is clearly winning.} R8xf3 {[%emt 0:00:01]} 44. hxg4 {[%emt 0:00:13]} h4 {[%emt 0:00:04]} 45. Re8+ {[%emt 0:00:31]} Kf7 {[%emt 0:00:20] Both players deserved the win here.  Weighted Error Value: White=0.74/Black=0.49} 0-1

[Event "XIII Marques de Pombal 2022"]
[Site "Pombal"]
[Date "2022.10.09"]
[Round "7.8"]
[White "Figueiredo, Mario Jose da Rocha"]
[Black "Gomes, Micael"]
[Result "1/2-1/2"]
[ECO "D53"]
[WhiteElo "1842"]
[BlackElo "1516"]
[Annotator "NA RC COMBH"]
[PlyCount "73"]
[EventDate "2022.09.28"]
[EventType "swiss"]
[EventCountry "POR"]
[SourceTitle "playchess.com"]
[Source "ChessBase"]
[SourceQuality "1"]
[TimeControl "5400+30"]

1. d4 {[%emt 0:00:26]} Nf6 {[%emt 0:00:13]} 2. c4 {[%emt 0:00:29]} e6 {[%emt 0:00:15]} 3. Nc3 {[%emt 0:00:19]} d5 {[%emt 0:00:27]} 4. Bg5 {[%emt 0:00:07]} Be7 {[%emt 0:02:31]} 5. e3 {[%emt 0:00:14]} a6 {[%emt 0:01:41]} 6. Nf3 {[%emt 0:01:20]} dxc4 {[%emt 0:00:36]} 7. Bxc4 {[%emt 0:00:07]} b5 {[%emt 0:00:07]} 8. Bd3 {[%emt 0:00:27]} Bb7 {[%emt 0:00:23]} 9. O-O {[%emt 0:00:44]} Nbd7 {[%emt 0:00:37]} 10. Rc1 {[%emt 0:01:57]} O-O {[%emt 0:00:43]} 11. Qe2 {[%emt 0:01:08]} c5 {[%emt 0:01:59]} 12. Rfd1 {[%emt 0:03:50]} c4 {[%emt 0:03:05]} 13. Bb1 {[%emt 0:00:41]} Rc8 {[%emt 0:11:33]} 14. Ne5 {[%emt 0:02:54]} Nxe5 {[%emt 0:09:57]} 15. dxe5 {[%emt 0:11:30]} Nd5 {[%emt 0:00:06]} 16. Qh5 {[%emt 0:02:56]} g6 {[%emt 0:01:17]} 17. Bxe7 {[%emt 0:00:35]} Qxe7 {[%emt 0:00:42]} 18. Qh6 {[%emt 0:01:00]} Rfd8 {[%emt 0:04:43]} 19. Ne4 {[%emt 0:05:03]} f5 {[%emt 0:18:05]} 20. Ng5 {[%emt 0:05:24]} Nc7 {[%emt 0:04:37]} (20... c3 $1 $15 {stays ahead.} 21. bxc3 Nxc3 22. Rxd8+ Rxd8) 21. Rd6 {[%emt 0:02:44]} Bd5 {[%emt 0:01:48]} 22. Rd1 {[%emt 0:03:33]} Qg7 {[%emt 0:00:41]} 23. Qxg7+ {[%emt 0:02:36]} Kxg7 {[%emt 0:00:11]} 24. Nxe6+ {[%emt 0:00:09]} Nxe6 {[%emt 0:00:54]} 25. R1xd5 {[%emt 0:00:47]} Rxd6 {[%emt 0:01:52]} 26. Rxd6 {[%emt 0:03:38]} Rd8 {[%emt 0:00:13]} 27. Rxd8 {[%emt 0:00:10]} Nxd8 {[%emt 0:00:06]} 28. f4 {[%emt 0:00:25]} Ne6 {[%emt 0:05:17]} 29. Kf2 {[%emt 0:01:49]} a5 {[%emt 0:00:54]} 30. Ke2 {[%emt 0:01:29]} Kf7 {[%emt 0:01:09]} (30... b4 $16 31. e4 Nxf4+ 32. Kf3 Ne6) 31. g3 {[%emt 0:00:18]} Nc5 {[%emt 0:00:27] [#]} 32. Bc2 {[%emt 0:05:16]} ({White should try} 32. e4 $1 $18 {[%cal Re4f5]}) 32... b4 {[%emt 0:01:02]} 33. Kd2 {[%emt 0:00:45]} Ke6 {[%emt 0:00:31]} 34. h4 {[%emt 0:08:40]} (34. Bd1 $142) 34... Kd5 {[%emt 0:01:42]} 35. b3 {[%emt 0:01:23]} ({White should play} 35. Kc1 $16) 35... c3+ {[%emt 0:01:06]} 36. Ke2 {[%emt 0:01:17]} h5 $11 {[%emt 0:05:00]} 37. Kf3 1/2-1/2